[Event "*** SCC Grand Prix: Titled Tuesday Blitz"]
[Site "Chess.com"]
[Date "2020.08.11"]
[Round "5"]
[White "Quiet_Desperation"]
[Black "NotFischer"]
[Result "1-0"]
[WhiteElo "2263"]
[BlackElo "2090"]
[TimeControl "180+1"]
[EndTime "10:56:05 PDT"]
[Termination "Quiet_Desperation won by resignation"]

1. e4 {[%clk 0:03:00.9]} 1... d5 {[%clk 0:02:59.6]} 2. exd5 {[%clk 0:03:00.7]}
2... Nf6 {[%clk 0:02:59.9]} 3. Nc3 {[%clk 0:03:01.6]} 3... Nxd5 {[%clk
0:02:59.2]} 4. Nf3 {[%clk 0:03:02.1]} 4... Bf5 {[%clk 0:02:57]} 5. Bc4 {[%clk
0:03:00.5]} 5... Nb6 {[%clk 0:02:56]} 6. Bb3 {[%clk 0:02:59.7]} 6... Nc6 {[%clk
0:02:55.5]} 7. O-O {[%clk 0:02:58.6]} 7... e6 {[%clk 0:02:55.4]} 8. Re1 {[%clk
0:02:54.3]} 8... Be7 {[%clk 0:02:54.4]} 9. d4 {[%clk 0:02:54.3]} 9... O-O {[%clk
0:02:53.1]} 10. h3 {[%clk 0:02:52.2]} 10... a5 {[%clk 0:02:52]} 11. a4 {[%clk
0:02:51.7]} 11... Nb4 {[%clk 0:02:51.4]} 12. Ne5 {[%clk 0:02:49.9]} 12... Rc8
{[%clk 0:02:39.1]} 13. Be3 {[%clk 0:02:43.8]} 13... c5 {[%clk 0:02:23.8]} 14. g4
{[%clk 0:02:35.1]} 14... Bg6 {[%clk 0:02:17.1]} 15. Nxg6 {[%clk 0:02:34]} 15...
hxg6 {[%clk 0:02:18]} 16. dxc5 {[%clk 0:02:29.9]} 16... Bxc5 {[%clk 0:02:08.7]}
17. Qf3 {[%clk 0:02:27.2]} 17... Bxe3 {[%clk 0:01:55]} 18. Rxe3 {[%clk
0:02:18.7]} 18... Qe7 {[%clk 0:01:52.9]} 19. Rae1 {[%clk 0:02:14.1]} 19... Rc6
{[%clk 0:01:41.1]} 20. Qf4 {[%clk 0:02:10.2]} 20... Rfc8 {[%clk 0:01:24.3]} 21.
Qe5 {[%clk 0:02:05.4]} 21... Nc4 {[%clk 0:01:19.9]} 22. Bxc4 {[%clk 0:02:00.5]}
22... Rxc4 {[%clk 0:01:20.8]} 23. R3e2 {[%clk 0:01:55.3]} 23... Qh4 {[%clk
0:01:07.8]} 24. Kg2 {[%clk 0:01:47.7]} 24... Kh7 {[%clk 0:00:46.2]} 25. f3
{[%clk 0:01:22.5]} 25... R8c5 {[%clk 0:00:43.8]} 26. Qg3 {[%clk 0:01:10.1]}
26... Qxg3+ {[%clk 0:00:38.4]} 27. Kxg3 {[%clk 0:01:11]} 27... Nd5 {[%clk
0:00:27.9]} 28. Ne4 {[%clk 0:01:10.9]} 28... Rc7 {[%clk 0:00:24]} 29. c3 {[%clk
0:00:53.4]} 29... Rxa4 {[%clk 0:00:23.9]} 30. h4 {[%clk 0:00:53.1]} 30... Nf6
{[%clk 0:00:23.8]} 31. Ng5+ {[%clk 0:00:52.5]} 31... Kg8 {[%clk 0:00:23.7]} 32.
Rd1 {[%clk 0:00:52.7]} 32... Rc8 {[%clk 0:00:22.2]} 33. Red2 {[%clk 0:00:50.9]}
33... Kf8 {[%clk 0:00:22.4]} 34. Rd6 {[%clk 0:00:41.1]} 34... Ra2 {[%clk
0:00:19.2]} 35. Rb6 {[%clk 0:00:40.5]} 35... Rc7 {[%clk 0:00:16.9]} 36. Rd8+
{[%clk 0:00:32.5]} 36... Ke7 {[%clk 0:00:17.2]} 37. Rb8 {[%clk 0:00:33.2]} 37...
Nd7 {[%clk 0:00:13.5]} 38. R6xb7 {[%clk 0:00:28]} 38... Rxb7 {[%clk 0:00:10.9]}
39. Rxb7 {[%clk 0:00:27.8]} 39... a4 {[%clk 0:00:11.4]} 40. Ne4 {[%clk
0:00:25.8]} 40... f5 {[%clk 0:00:09.6]} 41. Nc5 {[%clk 0:00:24]} 41... Kd6
{[%clk 0:00:08.1]} 42. Nxd7 {[%clk 0:00:23.5]} 42... Kc6 {[%clk 0:00:08.4]} 43.
Ra7 {[%clk 0:00:18.9]} 43... Rxb2 {[%clk 0:00:08.7]} 44. Ne5+ {[%clk 0:00:17.1]}
44... Kd5 {[%clk 0:00:09.1]} 45. Nxg6 {[%clk 0:00:15.2]} 45... Ra2 {[%clk
0:00:09.3]} 46. h5 {[%clk 0:00:13]} 46... fxg4 {[%clk 0:00:08.1]} 47. fxg4
{[%clk 0:00:12.9]} 47... Ra3 {[%clk 0:00:09]} 48. g5 {[%clk 0:00:11.7]} 48...
Rxc3+ {[%clk 0:00:08.7]} 49. Kg4 {[%clk 0:00:12.2]} 49... a3 {[%clk 0:00:08.9]}
50. h6 {[%clk 0:00:11.9]} 50... gxh6 {[%clk 0:00:09.1]} 51. gxh6 {[%clk
0:00:12.2]} 51... Rc4+ {[%clk 0:00:08.5]} 52. Nf4+ {[%clk 0:00:11.5]} 52... Kd6
{[%clk 0:00:07.7]} 53. h7 {[%clk 0:00:10.5]} 53... Rc8 {[%clk 0:00:06.7]} 54.
Ng6 {[%clk 0:00:10.9]} 54... Rh8 {[%clk 0:00:04.5]} 55. Nxh8 {[%clk 0:00:10.7]}
1-0

[Event "*** SCC Grand Prix: Titled Tuesday Blitz"]
[Site "Chess.com"]
[Date "2020.08.11"]
[Round "5"]
[White "northridgehawk"]
[Black "DonBroca"]
[Result "1-0"]
[WhiteElo "2306"]
[BlackElo "2107"]
[TimeControl "180+1"]
[EndTime "10:56:07 PDT"]
[Termination "northridgehawk won by resignation"]

1. e4 {[%clk 0:03:00.9]} 1... e5 {[%clk 0:02:56.9]} 2. Nf3 {[%clk 0:02:48.7]}
2... Nc6 {[%clk 0:02:55.4]} 3. Bb5 {[%clk 0:02:48.2]} 3... Nf6 {[%clk
0:02:53.8]} 4. d3 {[%clk 0:02:47.8]} 4... d6 {[%clk 0:02:28.9]} 5. O-O {[%clk
0:02:46.3]} 5... Be7 {[%clk 0:02:28.6]} 6. c3 {[%clk 0:02:45.9]} 6... O-O {[%clk
0:02:27.9]} 7. a4 {[%clk 0:02:45.1]} 7... a6 {[%clk 0:02:26.5]} 8. Bc4 {[%clk
0:02:44.3]} 8... Be6 {[%clk 0:02:21.9]} 9. Nbd2 {[%clk 0:02:43.3]} 9... Nd7
{[%clk 0:02:11.3]} 10. Bxe6 {[%clk 0:02:41.9]} 10... fxe6 {[%clk 0:02:09.3]} 11.
b4 {[%clk 0:02:41]} 11... d5 {[%clk 0:02:03.9]} 12. Re1 {[%clk 0:02:39.1]} 12...
d4 {[%clk 0:01:59.7]} 13. cxd4 {[%clk 0:02:33.8]} 13... exd4 {[%clk 0:01:55.3]}
14. Qb3 {[%clk 0:02:27.1]} 14... Rf6 {[%clk 0:01:29.4]} 15. Ba3 {[%clk
0:02:20.1]} 15... Kh8 {[%clk 0:01:14.7]} 16. b5 {[%clk 0:02:19]} 16... Na5
{[%clk 0:01:07.2]} 17. Qb2 {[%clk 0:02:08.9]} 17... Bxa3 {[%clk 0:01:04.4]} 18.
Rxa3 {[%clk 0:02:06.5]} 18... e5 {[%clk 0:01:03.5]} 19. Rc1 {[%clk 0:01:53]}
19... c6 {[%clk 0:01:01.1]} 20. b6 {[%clk 0:01:45.8]} 20... Re6 {[%clk
0:00:48.9]} 21. Rb1 {[%clk 0:01:38.5]} 21... c5 {[%clk 0:00:45.7]} 22. Qc1
{[%clk 0:01:32.2]} 22... Rxb6 {[%clk 0:00:41.1]} 23. Raa1 {[%clk 0:01:27.2]}
23... Rc8 {[%clk 0:00:37.5]} 24. Rxb6 {[%clk 0:01:21.4]} 24... Qxb6 {[%clk
0:00:38.4]} 25. Rb1 {[%clk 0:01:20.2]} 25... Qd6 {[%clk 0:00:37]} 26. Ng5 {[%clk
0:01:15.3]} 26... Qe7 {[%clk 0:00:33.5]} 27. h4 {[%clk 0:01:09.4]} 27... h6
{[%clk 0:00:32.7]} 28. Ngf3 {[%clk 0:01:09]} 28... Rf8 {[%clk 0:00:30.2]} 29.
Nf1 {[%clk 0:00:50.7]} 29... Rxf3 {[%clk 0:00:29.3]} 30. gxf3 {[%clk 0:00:49.6]}
30... Qxh4 {[%clk 0:00:29.4]} 31. Qd2 {[%clk 0:00:47]} 31... Qg5+ {[%clk
0:00:24.4]} 32. Qxg5 {[%clk 0:00:31]} 32... hxg5 {[%clk 0:00:25.3]} 33. Ng3
{[%clk 0:00:30.9]} 33... g6 {[%clk 0:00:24.3]} 34. Kg2 {[%clk 0:00:30.9]} 34...
Kg7 {[%clk 0:00:24.1]} 35. Kh3 {[%clk 0:00:31.8]} 35... Kf6 {[%clk 0:00:22.6]}
36. Kg4 {[%clk 0:00:30.9]} 36... b6 {[%clk 0:00:18.1]} 37. Ne2 {[%clk
0:00:29.8]} 37... c4 {[%clk 0:00:17.9]} 38. dxc4 {[%clk 0:00:29.3]} 38... Nxc4
{[%clk 0:00:18.8]} 39. Rc1 {[%clk 0:00:28.7]} 39... b5 {[%clk 0:00:14.2]} 40.
axb5 {[%clk 0:00:29.6]} 40... axb5 {[%clk 0:00:15.1]} 41. Rb1 {[%clk 0:00:29.5]}
41... Na3 {[%clk 0:00:14.7]} 42. Rb3 {[%clk 0:00:29.3]} 42... Nc4 {[%clk
0:00:08.3]} 43. Rxb5 {[%clk 0:00:28.8]} 43... d3 {[%clk 0:00:08.7]} 44. Nc3
{[%clk 0:00:27.8]} 44... Ndb6 {[%clk 0:00:06.7]} 45. Nd5+ {[%clk 0:00:26.1]}
45... Nxd5 {[%clk 0:00:06.3]} 46. Rxd5 {[%clk 0:00:27]} 46... d2 {[%clk
0:00:06]} 47. Kg3 {[%clk 0:00:26]} 47... Ke7 {[%clk 0:00:05.2]} 48. Kg2 {[%clk
0:00:25.2]} 48... Ke6 {[%clk 0:00:05.3]} 49. Kf1 {[%clk 0:00:25.6]} 49... Kf6
{[%clk 0:00:05.2]} 50. Ke2 {[%clk 0:00:26]} 50... Ke6 {[%clk 0:00:05.7]} 51. Kd1
{[%clk 0:00:25.6]} 51... Kf6 {[%clk 0:00:04.6]} 52. Kc2 {[%clk 0:00:25.9]} 52...
Ke6 {[%clk 0:00:04.5]} 53. Kc3 {[%clk 0:00:26]} 53... Na3 {[%clk 0:00:04.2]} 54.
Kxd2 {[%clk 0:00:25.1]} 54... Nb1+ {[%clk 0:00:04.3]} 55. Kd3 {[%clk 0:00:24.2]}
55... Na3 {[%clk 0:00:03.2]} 56. Kc3 {[%clk 0:00:23.8]} 56... Nb1+ {[%clk
0:00:02.8]} 57. Kb2 {[%clk 0:00:23.7]} 57... Nc3 {[%clk 0:00:01.4]} 58. Kxc3
{[%clk 0:00:23.6]} 1-0

[Event "*** SCC Grand Prix: Titled Tuesday Blitz"]
[Site "Chess.com"]
[Date "2020.08.11"]
[Round "5"]
[White "Kaliopa"]
[Black "chess4life23"]
[Result "0-1"]
[WhiteElo "2185"]
[BlackElo "2407"]
[TimeControl "180+1"]
[EndTime "10:56:10 PDT"]
[Termination "chess4life23 won on time"]

1. d4 {[%clk 0:03:00.9]} 1... Nf6 {[%clk 0:02:57.9]} 2. c4 {[%clk 0:03:00.7]}
2... g6 {[%clk 0:02:55.9]} 3. Nc3 {[%clk 0:03:00.1]} 3... d5 {[%clk 0:02:55.1]}
4. cxd5 {[%clk 0:03:00]} 4... Nxd5 {[%clk 0:02:56]} 5. e4 {[%clk 0:02:59.8]}
5... Nxc3 {[%clk 0:02:56.4]} 6. bxc3 {[%clk 0:02:59.9]} 6... Bg7 {[%clk
0:02:57.3]} 7. Be3 {[%clk 0:02:57.5]} 7... O-O {[%clk 0:02:55.7]} 8. Rc1 {[%clk
0:02:41.8]} 8... b6 {[%clk 0:02:54.7]} 9. h4 {[%clk 0:02:33.3]} 9... Bb7 {[%clk
0:02:52.1]} 10. Bd3 {[%clk 0:02:31.6]} 10... f5 {[%clk 0:02:39.5]} 11. exf5
{[%clk 0:02:19.8]} 11... gxf5 {[%clk 0:02:37.7]} 12. Nf3 {[%clk 0:02:14.2]}
12... c5 {[%clk 0:01:13.1]} 13. Ng5 {[%clk 0:02:05.2]} 13... Qd5 {[%clk
0:01:05.2]} 14. Qh5 {[%clk 0:01:55.2]} 14... h6 {[%clk 0:01:03]} 15. Qg6 {[%clk
0:01:50.1]} 15... hxg5 {[%clk 0:00:42.4]} 16. hxg5 {[%clk 0:01:49.9]} 16... Rf7
{[%clk 0:00:41.1]} 17. Qh7+ {[%clk 0:01:41]} 17... Kf8 {[%clk 0:00:40.8]} 18. g6
{[%clk 0:01:41.2]} 18... Rf6 {[%clk 0:00:37.6]} 19. Bh6 {[%clk 0:01:37.7]} 19...
Qg8 {[%clk 0:00:28.3]} 20. Bc4 {[%clk 0:01:05]} 20... e6 {[%clk 0:00:24.7]} 21.
Bg5 {[%clk 0:01:00.8]} 21... Nd7 {[%clk 0:00:22]} 22. Qxg8+ {[%clk 0:00:44.2]}
22... Kxg8 {[%clk 0:00:20.6]} 23. Bxf6 {[%clk 0:00:44.2]} 23... Nxf6 {[%clk
0:00:20.3]} 24. Bxe6+ {[%clk 0:00:44.3]} 24... Kf8 {[%clk 0:00:21.2]} 25. Bxf5
{[%clk 0:00:29.5]} 25... Bxg2 {[%clk 0:00:21.3]} 26. Rg1 {[%clk 0:00:26.8]}
26... Re8+ {[%clk 0:00:21.2]} 27. Kd1 {[%clk 0:00:21.5]} 27... Bd5 {[%clk
0:00:22.1]} 28. c4 {[%clk 0:00:14.9]} 28... Bf3+ {[%clk 0:00:21.7]} 29. Kc2
{[%clk 0:00:14.4]} 29... cxd4 {[%clk 0:00:22.4]} 30. Rg3 {[%clk 0:00:13.1]}
30... Be2 {[%clk 0:00:22]} 31. Rcg1 {[%clk 0:00:11.1]} 31... Re5 {[%clk
0:00:22]} 32. Bd3 {[%clk 0:00:10]} 32... Bh5 {[%clk 0:00:22.4]} 33. Rh3 {[%clk
0:00:08.9]} 33... Nd7 {[%clk 0:00:19.5]} 34. Kd2 {[%clk 0:00:06.1]} 34... Ra5
{[%clk 0:00:19.7]} 35. a4 {[%clk 0:00:04.3]} 35... Ne5 {[%clk 0:00:19.7]} 36.
Rxh5 {[%clk 0:00:03.6]} 36... Nxc4+ {[%clk 0:00:18.7]} 37. Bxc4 {[%clk
0:00:03.4]} 37... Rxh5 {[%clk 0:00:19.6]} 38. Kd3 {[%clk 0:00:03.5]} 38... Rf5
{[%clk 0:00:19.4]} 39. Rg2 {[%clk 0:00:02.9]} 39... Rf3+ {[%clk 0:00:19]} 40.
Kd2 {[%clk 0:00:02.3]} 40... Rc3 {[%clk 0:00:19.2]} 41. Bd5 {[%clk 0:00:02.2]}
41... Ra3 {[%clk 0:00:19.1]} 42. f4 {[%clk 0:00:02.5]} 42... Rxa4 {[%clk
0:00:18.3]} 43. f5 {[%clk 0:00:02.8]} 43... Rb4 {[%clk 0:00:18.1]} 44. Be4
{[%clk 0:00:02.9]} 44... Rb2+ {[%clk 0:00:18]} 45. Kd3 {[%clk 0:00:03.2]} 45...
Rxg2 {[%clk 0:00:18.7]} 46. Bxg2 {[%clk 0:00:03.6]} 46... Ke7 {[%clk 0:00:19.6]}
47. Kc4 {[%clk 0:00:03.1]} 47... Kd6 {[%clk 0:00:15.3]} 48. Be4 {[%clk 0:00:02]}
48... a6 {[%clk 0:00:13.8]} 49. Bd3 {[%clk 0:00:02]} 49... b5+ {[%clk
0:00:13.4]} 50. Kb4 {[%clk 0:00:02.1]} 50... Kc6 {[%clk 0:00:13.8]} 51. Ka5
{[%clk 0:00:02.3]} 51... Kb7 {[%clk 0:00:14.2]} 0-1

[Event "*** SCC Grand Prix: Titled Tuesday Blitz"]
[Site "Chess.com"]
[Date "2020.08.11"]
[Round "5"]
[White "Chess_Boxer123"]
[Black "Son_of_Sultan"]
[Result "1/2-1/2"]
[WhiteElo "2580"]
[BlackElo "2719"]
[TimeControl "180+1"]
[EndTime "10:56:11 PDT"]
[Termination "Game drawn by agreement"]

1. d4 {[%clk 0:02:57.3]} 1... d5 {[%clk 0:02:56.5]} 2. Bf4 {[%clk 0:02:52.5]}
2... c5 {[%clk 0:02:54.3]} 3. e3 {[%clk 0:02:51.1]} 3... Nc6 {[%clk 0:02:52.3]}
4. Nf3 {[%clk 0:02:50.8]} 4... cxd4 {[%clk 0:02:40.1]} 5. exd4 {[%clk
0:02:49.5]} 5... Bg4 {[%clk 0:02:35]} 6. Nbd2 {[%clk 0:02:45.5]} 6... e6 {[%clk
0:02:30.9]} 7. c3 {[%clk 0:02:44.2]} 7... Bd6 {[%clk 0:02:28]} 8. Bxd6 {[%clk
0:02:42.2]} 8... Qxd6 {[%clk 0:02:27.6]} 9. Bd3 {[%clk 0:02:42.7]} 9... Nge7
{[%clk 0:02:23.4]} 10. O-O {[%clk 0:02:38.2]} 10... a6 {[%clk 0:02:15.3]} 11.
Re1 {[%clk 0:02:37.3]} 11... Rc8 {[%clk 0:02:09]} 12. Qe2 {[%clk 0:02:31.4]}
12... Bh5 {[%clk 0:01:58.3]} 13. Qe3 {[%clk 0:02:21.3]} 13... Bg6 {[%clk
0:01:57]} 14. Bxg6 {[%clk 0:02:15.8]} 14... hxg6 {[%clk 0:01:56.3]} 15. Ne5
{[%clk 0:02:15.6]} 15... Nxe5 {[%clk 0:01:44.4]} 16. dxe5 {[%clk 0:02:01.6]}
16... Qc5 {[%clk 0:01:40.8]} 17. Nb3 {[%clk 0:02:01.7]} 17... Qxe3 {[%clk
0:01:40.4]} 18. Rxe3 {[%clk 0:02:02.6]} 18... Nf5 {[%clk 0:01:36.7]} 19. Re2
{[%clk 0:02:00.3]} 19... g5 {[%clk 0:01:29.3]} 20. Rd1 {[%clk 0:01:57.8]} 20...
Rh4 {[%clk 0:01:28.3]} 21. g3 {[%clk 0:01:54.6]} 21... Ra4 {[%clk 0:01:25.5]}
22. a3 {[%clk 0:01:51.2]} 22... Ke7 {[%clk 0:01:23.1]} 23. h3 {[%clk 0:01:48.6]}
23... b6 {[%clk 0:01:02.8]} 24. Kg2 {[%clk 0:01:47.4]} 24... Rac4 {[%clk
0:01:01.8]} 25. f3 {[%clk 0:01:25.1]} 25... a5 {[%clk 0:00:59.9]} 26. Nd2 {[%clk
0:01:14.9]} 26... R4c5 {[%clk 0:00:55.4]} 27. Nb3 {[%clk 0:01:13.6]} 27... Rc4
{[%clk 0:00:50.1]} 28. Nd2 {[%clk 0:01:08]} 28... R4c7 {[%clk 0:00:45.7]} 29.
Nb3 {[%clk 0:01:07.9]} 29... a4 {[%clk 0:00:43.5]} 30. Nd4 {[%clk 0:01:07.6]}
30... Nxd4 {[%clk 0:00:42.8]} 31. Rxd4 {[%clk 0:01:07.4]} 31... Rc4 {[%clk
0:00:42.7]} 32. Red2 {[%clk 0:01:07.8]} 32... f6 {[%clk 0:00:40.3]} 33. Rxc4
{[%clk 0:01:02.7]} 33... Rxc4 {[%clk 0:00:39.3]} 34. Rd4 {[%clk 0:00:59.1]}
34... Rxd4 {[%clk 0:00:31.4]} 35. cxd4 {[%clk 0:01:00]} 35... fxe5 {[%clk
0:00:28.7]} 36. dxe5 {[%clk 0:01:00.9]} 36... Kd7 {[%clk 0:00:29.6]} 37. f4
{[%clk 0:00:50.5]} 37... gxf4 {[%clk 0:00:26.3]} 38. gxf4 {[%clk 0:00:38.5]}
38... Kc6 {[%clk 0:00:21.2]} 39. Kf3 {[%clk 0:00:36.3]} 39... Kc5 {[%clk
0:00:19.9]} 40. Ke3 {[%clk 0:00:36.4]} 40... d4+ {[%clk 0:00:17.8]} 41. Ke4
{[%clk 0:00:35.4]} 41... Kc4 {[%clk 0:00:17.7]} 42. f5 {[%clk 0:00:35.2]} 42...
exf5+ {[%clk 0:00:13.9]} 43. Kxf5 {[%clk 0:00:36.1]} 43... d3 {[%clk 0:00:12]}
44. e6 {[%clk 0:00:36.3]} 44... d2 {[%clk 0:00:12.3]} 45. e7 {[%clk 0:00:37.2]}
45... d1=Q {[%clk 0:00:13.2]} 46. e8=Q {[%clk 0:00:37.4]} 46... Qc2+ {[%clk
0:00:10.1]} 47. Kg5 {[%clk 0:00:37.6]} 47... Qg2+ {[%clk 0:00:06.3]} 48. Kf4
{[%clk 0:00:36.7]} 48... Qf2+ {[%clk 0:00:05.6]} 49. Kg4 {[%clk 0:00:33]} 49...
Qg2+ {[%clk 0:00:05.8]} 50. Kf4 {[%clk 0:00:32.5]} 50... Qf2+ {[%clk 0:00:05.9]}
51. Kg4 {[%clk 0:00:32.4]} 51... Qg2+ {[%clk 0:00:06]} 1/2-1/2

[Event "*** SCC Grand Prix: Titled Tuesday Blitz"]
[Site "Chess.com"]
[Date "2020.08.11"]
[Round "5"]
[White "Twitch_ElhamBlitz05"]
[Black "chess94cu"]
[Result "1-0"]
[WhiteElo "2761"]
[BlackElo "2588"]
[TimeControl "180+1"]
[EndTime "10:56:12 PDT"]
[Termination "Twitch_ElhamBlitz05 won by resignation"]

1. e4 {[%clk 0:03:00.9]} 1... e5 {[%clk 0:02:58.8]} 2. Nc3 {[%clk 0:03:00.4]}
2... Nf6 {[%clk 0:02:57.7]} 3. Bc4 {[%clk 0:03:00.9]} 3... Nc6 {[%clk
0:02:53.6]} 4. d3 {[%clk 0:03:00.9]} 4... Bc5 {[%clk 0:02:52.7]} 5. f4 {[%clk
0:03:00.7]} 5... d6 {[%clk 0:02:51.5]} 6. Nf3 {[%clk 0:03:00.8]} 6... Bg4 {[%clk
0:02:42.3]} 7. Na4 {[%clk 0:02:56]} 7... Bb6 {[%clk 0:02:36.9]} 8. Nxb6 {[%clk
0:02:55.8]} 8... axb6 {[%clk 0:02:37.8]} 9. c3 {[%clk 0:02:56.4]} 9... O-O
{[%clk 0:02:13.1]} 10. h3 {[%clk 0:02:55.9]} 10... Bxf3 {[%clk 0:02:11.4]} 11.
Qxf3 {[%clk 0:02:56.8]} 11... Na5 {[%clk 0:01:45]} 12. Bb5 {[%clk 0:02:55]}
12... c6 {[%clk 0:01:43.3]} 13. Ba4 {[%clk 0:02:54.7]} 13... b5 {[%clk
0:01:43.8]} 14. Bc2 {[%clk 0:02:53.2]} 14... c5 {[%clk 0:01:41.3]} 15. O-O
{[%clk 0:02:51.8]} 15... Nd7 {[%clk 0:01:39]} 16. f5 {[%clk 0:02:46.5]} 16... f6
{[%clk 0:01:38.3]} 17. g4 {[%clk 0:02:45.2]} 17... b4 {[%clk 0:01:32.8]} 18. Kh1
{[%clk 0:02:39.2]} 18... b5 {[%clk 0:01:23.3]} 19. Rg1 {[%clk 0:02:33.1]} 19...
h6 {[%clk 0:01:22.5]} 20. h4 {[%clk 0:02:32.8]} 20... Qe7 {[%clk 0:01:09.7]} 21.
g5 {[%clk 0:02:31.5]} 21... hxg5 {[%clk 0:01:09.8]} 22. hxg5 {[%clk 0:02:32.4]}
22... fxg5 {[%clk 0:01:06.8]} 23. Bxg5 {[%clk 0:02:33.3]} 23... Nf6 {[%clk
0:01:07.2]} 24. Rg2 {[%clk 0:02:27.3]} 24... Kf7 {[%clk 0:00:57.3]} 25. Rag1
{[%clk 0:02:22.1]} 25... Rh8+ {[%clk 0:00:57.4]} 26. Rh2 {[%clk 0:02:21.5]}
26... Rxh2+ {[%clk 0:00:57.2]} 27. Kxh2 {[%clk 0:02:22.4]} 27... Rh8+ {[%clk
0:00:57.6]} 28. Kg2 {[%clk 0:02:22.8]} 28... Ke8 {[%clk 0:00:56.2]} 29. cxb4
{[%clk 0:01:51.7]} 29... cxb4 {[%clk 0:00:55.9]} 30. Bb3 {[%clk 0:01:52.3]}
30... Nc6 {[%clk 0:00:50.3]} 31. Rc1 {[%clk 0:01:39.8]} 31... Kd7 {[%clk
0:00:38.1]} 32. Be6+ {[%clk 0:01:37.7]} 32... Kc7 {[%clk 0:00:33]} 33. Bd5
{[%clk 0:01:36.5]} 33... Nxd5 {[%clk 0:00:32.4]} 34. Bxe7 {[%clk 0:01:37]} 34...
Nxe7 {[%clk 0:00:29.9]} 35. f6 {[%clk 0:01:30.8]} 35... gxf6 {[%clk 0:00:29.7]}
36. Qxf6 {[%clk 0:01:31.7]} 36... Rg8+ {[%clk 0:00:29.9]} 37. Kf2 {[%clk
0:01:32.1]} 37... Kd7 {[%clk 0:00:30.4]} 38. Qf7 {[%clk 0:01:22.7]} 38... Nd8
{[%clk 0:00:25.7]} 39. Rc7+ {[%clk 0:01:10.5]} 39... Kxc7 {[%clk 0:00:25.8]} 40.
Qxe7+ {[%clk 0:01:11.4]} 40... Kc6 {[%clk 0:00:26.7]} 41. Qa7 {[%clk 0:01:10.1]}
41... Ne6 {[%clk 0:00:21.3]} 42. Qa6+ {[%clk 0:01:05.2]} 42... Kc7 {[%clk
0:00:21.7]} 43. Qxb5 {[%clk 0:01:04.2]} 43... Rf8+ {[%clk 0:00:22.2]} 44. Ke1
{[%clk 0:01:03.5]} 44... Nd4 {[%clk 0:00:22.1]} 45. Qc4+ {[%clk 0:00:57.3]}
45... Kd7 {[%clk 0:00:21.9]} 46. a4 {[%clk 0:00:57.4]} 46... bxa3 {[%clk
0:00:21.9]} 47. bxa3 {[%clk 0:00:58.3]} 47... Rc8 {[%clk 0:00:16.9]} 48. Qf7+
{[%clk 0:00:54.7]} 48... Kc6 {[%clk 0:00:15.7]} 49. a4 {[%clk 0:00:55.2]} 49...
Rb8 {[%clk 0:00:12.6]} 50. Qd5+ {[%clk 0:00:52.4]} 50... Kd7 {[%clk 0:00:12.3]}
51. a5 {[%clk 0:00:51.5]} 51... Rb5 {[%clk 0:00:12]} 52. Qf7+ {[%clk 0:00:47.7]}
52... Kc6 {[%clk 0:00:10.5]} 53. a6 {[%clk 0:00:48.3]} 53... Rb1+ {[%clk
0:00:10.1]} 54. Kf2 {[%clk 0:00:47.5]} 54... Rb2+ {[%clk 0:00:09.5]} 55. Kg3
{[%clk 0:00:46.4]} 55... Nb5 {[%clk 0:00:06.5]} 56. Qb7+ {[%clk 0:00:44.3]}
56... Kc5 {[%clk 0:00:06.9]} 57. a7 {[%clk 0:00:44.5]} 57... Nxa7 {[%clk
0:00:06.9]} 58. Qxb2 {[%clk 0:00:45]} 1-0

[Event "*** SCC Grand Prix: Titled Tuesday Blitz"]
[Site "Chess.com"]
[Date "2020.08.11"]
[Round "5"]
[White "KatarinaOstojic"]
[Black "lucachess49"]
[Result "1/2-1/2"]
[WhiteElo "2241"]
[BlackElo "2433"]
[TimeControl "180+1"]
[EndTime "10:56:12 PDT"]
[Termination "Game drawn by repetition"]

1. e4 {[%clk 0:03:00.9]} 1... e5 {[%clk 0:02:59.1]} 2. Nf3 {[%clk 0:03:00.8]}
2... Nc6 {[%clk 0:02:59.1]} 3. Bb5 {[%clk 0:03:01.3]} 3... a6 {[%clk 0:02:59.3]}
4. Ba4 {[%clk 0:03:01.6]} 4... Nf6 {[%clk 0:02:59.5]} 5. d3 {[%clk 0:03:01.6]}
5... d6 {[%clk 0:02:58.4]} 6. a3 {[%clk 0:03:01.5]} 6... Be6 {[%clk 0:02:55.3]}
7. d4 {[%clk 0:02:34.8]} 7... b5 {[%clk 0:02:37.9]} 8. d5 {[%clk 0:02:23]} 8...
Bxd5 {[%clk 0:02:34.3]} 9. exd5 {[%clk 0:02:22.2]} 9... Na5 {[%clk 0:02:22.5]}
10. Bb3 {[%clk 0:02:20.8]} 10... Nxb3 {[%clk 0:02:22.7]} 11. cxb3 {[%clk
0:02:21.7]} 11... Be7 {[%clk 0:02:22.8]} 12. O-O {[%clk 0:02:21.3]} 12... O-O
{[%clk 0:02:23.4]} 13. Nc3 {[%clk 0:02:21.9]} 13... Nd7 {[%clk 0:02:22.1]} 14.
Ne4 {[%clk 0:02:09.4]} 14... h6 {[%clk 0:02:21.9]} 15. Re1 {[%clk 0:02:04]}
15... f5 {[%clk 0:02:21.6]} 16. Nc3 {[%clk 0:02:04.6]} 16... g5 {[%clk
0:02:19.5]} 17. b4 {[%clk 0:01:55.1]} 17... Qe8 {[%clk 0:02:16.5]} 18. Qc2
{[%clk 0:01:44.4]} 18... Qg6 {[%clk 0:02:16]} 19. g4 {[%clk 0:01:30]} 19... Qe8
{[%clk 0:01:57.7]} 20. gxf5 {[%clk 0:01:25.9]} 20... Qh5 {[%clk 0:01:57.4]} 21.
Qe4 {[%clk 0:01:22.7]} 21... Nf6 {[%clk 0:01:33.2]} 22. Qe2 {[%clk 0:01:08.9]}
22... Ng4 {[%clk 0:01:32.5]} 23. Ne4 {[%clk 0:01:07.4]} 23... Qh3 {[%clk
0:01:26.9]} 24. Ng3 {[%clk 0:01:00]} 24... h5 {[%clk 0:01:16.2]} 25. Qf1 {[%clk
0:00:59.7]} 25... Qxf1+ {[%clk 0:01:13.2]} 26. Rxf1 {[%clk 0:01:00.1]} 26... h4
{[%clk 0:01:13.7]} 27. Ne4 {[%clk 0:00:56.2]} 27... Rxf5 {[%clk 0:01:13.4]} 28.
Nfxg5 {[%clk 0:00:50.3]} 28... a5 {[%clk 0:00:57.2]} 29. bxa5 {[%clk 0:00:47.5]}
29... Rxa5 {[%clk 0:00:58.1]} 30. Bd2 {[%clk 0:00:43.7]} 30... Ra4 {[%clk
0:00:57.2]} 31. h3 {[%clk 0:00:35.3]} 31... Nf6 {[%clk 0:00:49.8]} 32. Nxf6+
{[%clk 0:00:31.2]} 32... Bxf6 {[%clk 0:00:50.7]} 33. Ne6 {[%clk 0:00:31.8]}
33... e4 {[%clk 0:00:50.8]} 34. Nxc7 {[%clk 0:00:27.2]} 34... Bxb2 {[%clk
0:00:44.3]} 35. Rab1 {[%clk 0:00:27.3]} 35... Bd4 {[%clk 0:00:44.2]} 36. Nxb5
{[%clk 0:00:25.4]} 36... Bc5 {[%clk 0:00:44.2]} 37. Be3 {[%clk 0:00:23.6]} 37...
Rxd5 {[%clk 0:00:42.7]} 38. Nc3 {[%clk 0:00:22.9]} 38... Bxe3 {[%clk 0:00:32.7]}
39. Nxd5 {[%clk 0:00:23.1]} 39... Bc5 {[%clk 0:00:31.3]} 40. Nb4 {[%clk
0:00:21.8]} 40... Rxa3 {[%clk 0:00:31]} 41. Nc2 {[%clk 0:00:21.6]} 41... Ra2
{[%clk 0:00:31]} 42. Ne3 {[%clk 0:00:22.1]} 42... Kf7 {[%clk 0:00:29.2]} 43.
Rb7+ {[%clk 0:00:21.3]} 43... Ke6 {[%clk 0:00:29.5]} 44. Rd1 {[%clk 0:00:21.3]}
44... d5 {[%clk 0:00:28.7]} 45. Rh7 {[%clk 0:00:18.7]} 45... d4 {[%clk
0:00:28.4]} 46. Rh6+ {[%clk 0:00:19.2]} 46... Kf7 {[%clk 0:00:27.9]} 47. Ng4
{[%clk 0:00:18.2]} 47... e3 {[%clk 0:00:25.6]} 48. fxe3 {[%clk 0:00:17.7]} 48...
dxe3 {[%clk 0:00:26.5]} 49. Ne5+ {[%clk 0:00:14.1]} 49... Kg7 {[%clk 0:00:26.4]}
50. Rg6+ {[%clk 0:00:08.8]} 50... Kh7 {[%clk 0:00:15.9]} 51. Rd7+ {[%clk
0:00:07.1]} 51... Kh8 {[%clk 0:00:15]} 52. Rh6+ {[%clk 0:00:04.6]} 52... Kg8
{[%clk 0:00:14.9]} 53. Rg6+ {[%clk 0:00:05.5]} 53... Kh8 {[%clk 0:00:13.5]} 54.
Nf7+ {[%clk 0:00:05]} 54... Kh7 {[%clk 0:00:13.6]} 55. Ne5+ {[%clk 0:00:04.8]}
55... Kh8 {[%clk 0:00:13.8]} 1/2-1/2